bitfinex/quotes_ETHUSD_20250106
["timestamp","ask_amount","ask_price","bid_price","bid_amount"]
[1736204630566,1.96731796,3675.3,3674.0,0.5575]
[1736204630567,2.75503505,3675.1,3674.0,0.5575]
[1736204630769,2.75503505,3675.1,3674.0,1.21832722]
[1736204630954,2.72102,3675.1,3674.0,1.21832722]
[1736204631154,2.72102,3675.1,3674.1,2.72173]
[1736204631566,2.00133294,3675.3,3674.1,2.72173]
[1736204631803,1.13621796,3675.3,3674.4,0.565]
[1736204631937,1.13621796,3675.3,3674.7,0.0075]
[1736204632141,2.72045,3675.9,3674.7,2.91575]
[1736204632363,0.03400859,3675.8,3674.7,2.91575]
[1736204632570,2.72045,3675.9,3674.7,2.91575]
[1736204632872,0.766,3675.7,3674.5,0.31643822]
[1736204633088,2.72084,3675.4,3674.3,0.187]
[1736204633303,0.03401267,3675.3,3674.3,0.187]
[1736204633506,2.75489267,3675.3,3674.3,0.187]
[1736204633835,0.03401267,3675.3,3674.3,0.187]
[1736204634041,2.72124,3674.8,3674.3,0.187]
[1736204634236,0.30340127,3675.2,3674.2,2.72163]
[1736204634475,0.30340127,3675.2,3674.2,2.90863]
[1736204634704,3.30340127,3675.2,3674.2,2.90863]
[1736204635200,2.7212,3674.9,3674.2,0.187]
[1736204635339,0.03401684,3674.8,3674.2,0.187]
[1736204635535,0.03401684,3674.8,3673.8,0.187]
[1736204635843,5.89528346,3675.2,3673.6,0.187]
[1736204635844,2.72137,3674.7,3673.6,0.187]
[1736204636066,3.03401926,3674.6,3673.6,0.187]
[1736204636599,3.03401926,3674.6,3673.5,2.90919]
[1736204636917,3.03401926,3674.6,3673.5,3.200859]
[1736204637980,2.62590145,3674.6,3672.5,2.59188219]
[1736204638136,2.72181,3674.1,3672.9,0.187]
[1736204638336,2.72181,3674.1,3673.0,2.72255]
[1736204639274,2.72181,3674.1,3673.1,0.5575]
[1736204639579,0.7692,3674.7,3673.4,2.72224]
[1736204639580,2.75549508,3674.5,3673.4,2.72224]
[1736204640081,3.0,3674.4,3673.4,2.91324]
[1736204640671,0.03402093,3674.4,3673.3,0.5575]
[1736204640892,2.72179,3674.1,3672.9,2.72263]
[1736204641194,2.72179,3674.1,3673.0,3.185823]
[1736204641904,0.7692,3674.7,3673.2,0.0225]
[1736204642276,3.7692,3674.7,3673.6,2.72212]
[1736204642480,3.80321936,3674.7,3673.5,2.72214]
[1736204642696,3.80321936,3674.7,3673.6,2.7221]
[1736204643017,2.72176,3674.1,3673.0,3.185813]
[1736204643212,3.0,3673.8,3672.7,2.72274]
[1736204643510,2.72202,3673.8,3672.8,0.191]
[1736204643684,2.72202,3673.8,3672.8,0.5575]
[1736204643886,0.03402461,3673.7,3671.9,3.07444449]
[1736204644212,2.72223,3673.5,3672.3,2.72303]
[1736204644410,2.75632994,3673.4,3672.4,0.0075]
[1736204644575,0.03402994,3673.4,3672.4,0.0075]
[1736204644776,0.03403018,3673.7,3672.4,0.0075]
[1736204645114,2.72226,3673.5,3672.5,0.33966745]
[1736204645276,0.03402995,3673.4,3672.5,0.33966745]
[1736204646609,3.0,3673.6,3672.4,0.5575]
[1736204646835,0.7991,3674.0,3673.0,2.72256]
[1736204647033,0.7991,3674.0,3672.8,2.7227]
[1736204647034,3.03402599,3673.9,3672.8,2.7227]
[1736204647197,3.03402599,3673.9,3672.8,0.0075]
[1736204647198,2.72204,3673.8,3672.8,0.0075]
[1736204647616,2.72204,3673.8,3672.7,0.55]
[1736204647617,2.72206,3673.7,3672.6,2.72284]
[1736204647780,2.75608612,3673.7,3672.7,0.272284]
[1736204648278,2.72206,3673.7,3672.7,0.272284]
[1736204648619,0.03402832,3673.9,3672.7,0.272284]
[1736204648821,2.72205,3673.7,3672.6,2.72285]
[1736204648980,0.03402834,3673.6,3672.6,2.72285]
[1736204649283,2.72205,3673.7,3672.6,2.72285]
[1736204649939,2.75593834,3673.9,3672.7,2.72272]
[1736204650130,2.75593834,3673.9,3672.8,2.994952]
[1736204650764,0.03402834,3673.9,3672.9,2.72259]
[1736204650903,3.47771,3674.3,3672.9,0.5575]
[1736204651256,2.72101,3675.2,3672.9,0.5575]
[1736204651257,3.47722,3675.0,3673.8,2.72191]
[1736204651414,0.03401818,3674.9,3674.0,2.72179]
[1736204651736,0.03401818,3674.9,3673.8,0.272191]
[1736204651937,0.03401818,3674.9,3673.7,0.191]
[1736204652141,2.72151,3674.5,3673.7,0.191]
[1736204652318,0.68645627,3674.8,3673.7,0.191]
[1736204652319,2.75535131,3674.7,3673.7,0.191]
[1736204653645,0.03402131,3674.7,3673.7,0.191]
[1736204653812,2.72148,3674.5,3673.7,0.191]
[1736204654405,2.7216,3674.3,3673.7,0.191]
[1736204654641,0.03401965,3674.2,3672.8,0.463272]
[1736204654811,2.72189,3674.0,3672.9,2.72264]
[1736204655013,0.03402567,3673.9,3672.8,0.191]
[1736204655212,2.72204,3673.8,3672.8,0.191]
[1736204655910,2.72208,3673.7,3672.8,0.191]
[1736204656132,2.75610789,3673.7,3672.8,0.191]
[1736204656331,2.72208,3673.7,3672.8,0.191]
[1736204657466,0.80032792,3673.6,3672.2,0.47514445]
[1736204657619,0.80032792,3673.6,3672.3,0.191]
[1736204657817,2.72221,3673.5,3672.5,2.72293]
[1736204658220,2.72221,3673.5,3672.3,0.191]
[1736204658221,0.03402792,3673.6,3673.4,35.0]
[1736204658419,3.0,3673.8,3673.4,35.0]
[1736204658632,0.03402663,3674.1,3673.0,2.72252]
[1736204658633,3.0,3674.0,3673.0,2.72252]
[1736204658859,3.03402663,3674.0,3673.0,2.72252]
[1736204659015,3.68623629,3674.0,3673.0,2.72252]
[1736204659215,0.68623629,3674.0,3673.9,35.0]
[1736204659427,3.88787042,3674.4,3673.9,35.0]
[1736204659623,3.88787042,3674.4,3673.3,2.91334]
[1736204660031,3.88787042,3674.4,3674.3,35.0]
[1736204660251,1.13224524,3674.4,3674.3,35.0]
[1736204660654,3.0,3674.6,3674.3,35.0]
[1736204660961,3.79600379,3674.6,3673.7,2.72203]
[1736204661333,3.79600379,3674.6,3674.5,35.0]
[1736204661534,3.76198552,3674.6,3674.5,35.0]
[1736204661942,6.48336552,3674.6,3674.5,35.0]
[1736204664044,0.7663,3674.9,3674.5,35.0]
[1736204664354,0.8003182,3674.9,3673.7,2.72198]
[1736204664592,3.0,3674.7,3673.7,2.72198]
[1736204665222,3.0,3674.7,3674.6,35.0]
[1736204665549,2.72125,3674.8,3674.6,35.0]
[1736204665854,1.16626298,3675.1,3674.1,0.5575]
[1736204666362,6.88727298,3675.1,3675.0,35.0]
[1736204666521,5.72101,3675.1,3675.0,35.0]
[1736204669475,0.7668,3675.3,3675.0,35.0]
[1736204669639,2.72088,3675.3,3674.3,2.72157]
[1736204669844,1.16625888,3675.4,3673.1,3.07444449]
[1736204670055,3.0,3675.1,3674.9,35.0]
[1736204670254,3.76686489,3675.1,3674.9,35.0]
[1736204670556,3.76686489,3675.1,3674.2,2.72166]
[1736204670557,3.80087928,3675.1,3674.2,2.72166]
[1736204670954,3.80087928,3675.1,3675.0,35.0]
[1736204671140,1.13224524,3675.5,3675.0,35.0]
[1736204671345,1.13224524,3675.5,3674.8,2.72123]
[1736204671541,1.13224524,3675.5,3675.0,0.0075]
[1736204671745,1.13224524,3675.5,3675.4,2.72079]
[1736204672054,1.13224524,3675.5,3675.4,35.0]
[1736204672869,1.13224524,3675.7,3675.4,35.0]
[1736204673040,1.13224524,3675.7,3675.1,2.72095]
[1736204673241,1.13224524,3675.7,3675.1,3.012345]
[1736204673500,1.13224524,3675.7,3675.6,35.0]
[1736204673778,1.13224524,3675.7,3675.6,40.87872303]
[1736204673953,0.8108,3676.7,3676.1,0.0075]
[1736204673954,1.13224524,3676.4,3676.1,0.0075]
[1736204674153,1.13224524,3676.4,3675.9,0.193]
[1736204674358,1.13224524,3676.4,3675.8,2.72046]
[1736204674584,1.13224524,3676.4,3676.3,35.0]
[1736204675481,1.13224524,3676.4,3676.3,40.99519592]
[1736204675667,1.13224524,3677.2,3676.5,2.71997]
[1736204675853,1.13224524,3677.2,3676.6,0.193]
[1736204676269,1.13224524,3677.2,3677.1,35.0]
[1736204677181,0.8108,3677.7,3677.1,35.0]
[1736204677385,1.87700152,3677.7,3676.7,2.71982]
[1736204677584,1.13224524,3678.0,3677.0,2.71959]
[1736204677884,1.16623323,3678.0,3677.9,35.0]
[1736204678078,3.85110524,3678.0,3677.9,35.0]
[1736204678283,8.01129351,3678.0,3675.6,3.06824827]
[1736204678482,0.03399483,3677.9,3676.2,0.193]
[1736204678782,2.71951,3677.2,3676.2,0.193]
[1736204679278,2.71951,3677.2,3676.9,35.0]
[1736204681562,2.71931,3677.5,3676.5,0.0075]
[1736204681768,0.39130431,3677.8,3676.7,0.5575]
[1736204681769,2.71905,3677.8,3676.7,0.5575]
[1736204682075,5.7191,3677.7,3676.7,0.5575]
[1736204682275,2.7191,3677.7,3676.7,0.5575]
[1736204682464,2.71932,3677.4,3676.4,2.72004]
[1736204682666,2.71932,3677.4,3677.3,35.0]
[1736204682667,5.71931,3677.4,3677.3,35.0]
[1736204682869,6.75119066,3677.4,3677.3,35.0]
[1736204684695,2.72023,3676.2,3674.8,3.06824827]
[1736204684910,2.72005,3676.4,3675.2,2.91386]
[1736204685057,3.0,3676.6,3675.4,0.0075]
[1736204685454,3.0,3676.6,3675.6,0.5575]
[1736204685671,3.0,3676.6,3676.5,35.0]
[1736204686667,2.71967,3677.0,3676.5,35.0]
[1736204686873,2.7196,3677.1,3675.8,0.5575]
[1736204687163,2.7196,3677.1,3676.0,2.72027]
[1736204687464,2.7196,3677.1,3677.0,35.0]
[1736204687664,1.03188066,3677.4,3677.0,35.0]
[1736204687866,0.8006,3677.6,3676.2,0.5725]
[1736204688279,0.8006,3677.6,3677.5,35.0]
[1736204688663,6.51976,3677.6,3677.5,35.0]
[1736204688965,3.51976,3677.6,3677.5,35.0]
[1736204692405,0.8006,3677.6,3677.5,35.0]
[1736204692720,2.71916,3677.6,3677.5,35.0]
[1736204693008,3.33843,3677.6,3677.5,35.0]
[1736204693777,3.33843,3677.6,3675.7,0.336065]
[1736204693778,2.71993,3676.6,3675.7,0.328565]
[1736204693984,2.71962,3677.0,3675.7,2.72057]
[1736204693985,0.7546,3677.0,3675.7,2.72057]
[1736204694185,0.7546,3677.0,3676.0,2.72031]
[1736204694817,2.71991,3676.6,3675.6,0.193]
[1736204695021,0.78859676,3677.0,3675.1,0.291395]
[1736204695225,0.03400214,3676.9,3675.1,0.291395]
[1736204695423,2.72029,3676.1,3675.1,0.484395]
[1736204695990,2.72029,3676.1,3675.2,0.55]
[1736204696216,0.7862,3676.3,3675.1,0.291395]
[1736204696426,3.06824827,3676.1,3674.6,0.193]
[1736204696602,2.72067,3675.6,3674.6,0.193]
[1736204696815,2.72072,3675.5,3674.6,0.193]
[1736204697626,2.72058,3675.7,3674.6,0.193]
[1736204697829,0.7862,3676.3,3674.7,0.5575]
[1736204698035,2.72036,3676.0,3674.9,2.72112]
[1736204698332,0.03400661,3675.9,3675.0,0.327862]
[1736204698702,2.72063,3675.7,3674.6,2.91431]
[1736204699128,2.72088,3675.3,3674.0,3.06824827]
[1736204699292,0.0340119,3675.4,3674.2,0.198]
[1736204699494,2.72058,3675.7,3674.5,0.5575]
[1736204699808,2.72058,3675.7,3674.6,2.72135]
[1736204700128,2.72058,3675.7,3674.7,0.272885]
[1736204700724,0.0340095,3675.6,3674.2,2.91966]
[1736204700928,0.0340095,3675.6,3674.2,0.198]
[1736204701235,2.72063,3675.7,3674.5,2.72144]
[1736204701526,0.03401035,3675.6,3674.5,2.72144]
[1736204701689,0.03401035,3675.6,3674.4,0.0075]
[1736204701891,2.72063,3675.7,3674.6,2.72136]
[1736204702098,2.72063,3675.7,3674.7,2.72128]
[1736204702759,0.03400979,3675.6,3674.6,0.198]
[1736204702956,2.72109,3675.0,3674.0,2.7218]
[1736204703090,0.03401438,3674.9,3673.2,3.06824827]
[1736204703286,0.03401438,3674.9,3673.3,0.50482483]
[1736204703287,2.72161,3674.3,3673.3,0.50482483]
[1736204703561,3.0,3674.1,3673.1,2.72247]
[1736204703690,3.0,3674.1,3673.2,0.0075]
[1736204704028,3.0,3674.1,3673.1,2.92047]
[1736204705134,3.0,3674.6,3672.4,5.79119827]
[1736204705295,3.0,3673.7,3672.6,2.72279]
[1736204705495,3.0,3673.7,3672.7,2.72277]
[1736204705691,0.793,3673.7,3672.5,0.82463427]
[1736204705939,0.793,3673.7,3672.5,0.198]
[1736204706138,2.72244,3673.2,3672.5,0.198]
[1736204706324,2.72228,3673.4,3672.5,0.198]
[1736204708505,2.72241,3673.3,3672.5,0.198]
[1736204708708,0.03402998,3673.2,3672.5,0.198]
[1736204709020,2.72245,3673.2,3672.2,0.47514445]
[1736204709209,2.72245,3673.2,3672.3,0.33963945]
[1736204710207,0.03403248,3673.1,3671.7,2.72352]
[1736204710410,3.0,3673.6,3671.8,2.92141]
[1736204710411,2.72259,3673.0,3671.8,2.92141]
[1736204710729,0.03403471,3672.9,3671.8,2.92141]
[1736204711151,2.72259,3673.0,3671.9,2.72334]
[1736204711357,0.03403472,3673.3,3672.0,3.015414]
[1736204711646,2.72249,3673.1,3672.0,3.015414]
[1736204711848,0.03403472,3673.0,3672.0,3.015414]
[1736204712209,0.03403472,3673.5,3672.1,0.55]
[1736204712408,3.0,3673.4,3672.4,2.72301]
[1736204712626,0.03403074,3673.3,3672.4,0.327301]
[1736204713563,2.72242,3673.2,3672.2,2.72314]
[1736204713865,2.75652308,3673.1,3672.1,2.72323]
[1736204714465,2.75652308,3673.1,3671.8,0.198]
[1736204714757,2.75652308,3673.1,3672.0,2.7233]
[1736204715734,0.794,3673.0,3672.0,2.7233]
[1736204716077,0.0340342,3672.9,3671.8,0.198]
[1736204716281,2.72283,3672.7,3671.6,2.72357]
[1736204716445,0.03403884,3672.6,3671.7,0.198]
[1736204716830,2.72283,3672.7,3671.7,0.198]
[1736204717030,2.72283,3672.7,3671.7,2.92152]
[1736204717422,0.03403884,3672.9,3671.7,3.23161986]
[1736204717629,3.0,3672.8,3671.7,3.23161986]
[1736204717927,0.03403695,3672.7,3671.7,3.23161986]
[1736204719169,3.0,3672.6,3671.7,3.03361986]
[1736204719837,0.794,3673.0,3671.7,0.31009986]
[1736204720029,2.72252,3673.1,3672.1,0.55]
[1736204720224,2.75660278,3673.0,3672.0,2.72324]
[1736204720469,2.75660278,3673.0,3671.6,0.198]
[1736204720670,2.72265,3672.9,3671.8,2.72343]
[1736204720833,3.03403629,3672.8,3671.8,2.72343]
[1736204721034,3.0,3673.0,3672.0,2.7233]
[1736204721366,2.75662528,3673.0,3672.0,2.7233]
[1736204721670,0.03403527,3672.9,3672.0,2.7233]
[1736204722785,2.72271,3672.8,3671.8,3.016283]
[1736204723180,0.03403525,3673.0,3671.8,0.292893]
[1736204723496,2.72273,3672.8,3671.8,3.016343]
[1736204723786,3.54051,3672.7,3671.6,2.92154]
[1736204723993,0.85173525,3672.7,3671.6,2.92154]
[1736204724587,2.72287,3672.6,3671.6,2.92154]
[1736204725252,0.03403793,3672.9,3671.6,0.015]
[1736204725459,0.8177,3673.0,3672.0,2.72324]
[1736204725748,0.03403523,3673.3,3672.0,0.292124]
[1736204726059,2.72216,3673.6,3672.6,2.72285]
[1736204726263,3.0,3673.5,3672.6,2.92085]
[1736204726838,3.751,3673.7,3672.8,2.72271]
[1736204727039,3.0,3673.7,3672.8,3.070531]
[1736204727597,3.0,3673.7,3672.6,2.92079]
[1736204727598,2.72212,3673.7,3672.6,2.92079]
[1736204727754,2.72212,3673.7,3672.7,2.72278]
[1736204728905,2.72173,3674.2,3673.1,2.72249]
[1736204729901,0.03402495,3674.4,3673.2,2.72234]
[1736204730109,3.0,3674.7,3672.7,3.07449409]
[1736204730110,0.03402221,3674.7,3673.7,2.72204]
[1736204730311,0.03402221,3674.7,3673.7,0.204]
[1736204730849,2.72169,3674.2,3673.7,0.204]
[1736204732347,2.7557931,3674.1,3673.1,2.72249]
[1736204732548,0.7878231,3674.1,3673.0,0.204]
[1736204732810,2.72198,3673.8,3672.8,0.204]
[1736204733951,0.03402802,3673.9,3672.8,0.204]
[1736204734159,3.40806172,3674.0,3673.0,2.72255]
[1736204734357,3.0,3673.9,3673.0,2.72255]
[1736204735486,2.72183,3674.0,3673.0,2.72255]
[1736204735696,2.72167,3674.3,3673.2,2.72234]
[1736204735873,3.51227,3674.5,3673.4,2.72222]
[1736204736208,2.72168,3674.2,3673.1,3.022575]
[1736204736372,0.03402276,3674.1,3673.1,3.022575]
[1736204736569,2.72177,3674.1,3673.1,0.292655]
[1736204736887,0.7974,3673.9,3671.9,3.07449409]
[1736204737091,2.72214,3673.6,3672.4,2.72299]
[1736204737291,0.7974,3673.4,3671.5,3.07449409]
[1736204737450,0.7974,3673.4,3672.0,0.204]
[1736204737451,0.03403397,3673.3,3672.0,0.204]
[1736204737656,0.03403397,3673.3,3672.3,3.28057]
[1736204737657,3.0,3673.2,3672.3,3.28057]
[1736204737858,3.0,3673.2,3672.3,3.079027]
[1736204738593,0.03403015,3673.1,3672.3,0.204]
[1736204738757,2.72242,3673.2,3672.3,0.204]
[1736204738958,0.7974,3673.4,3672.5,2.72293]
[1736204739180,0.7974,3673.4,3672.3,2.92706]
[1736204739357,3.0,3673.3,3672.3,2.92706]
[1736204739569,3.65537107,3673.3,3672.3,2.92706]
[1736204740099,0.65537107,3673.3,3671.4,0.1794786]
[1736204740268,2.72266,3672.9,3671.8,2.72343]
[1736204740469,2.72266,3672.9,3671.9,2.72332]
[1736204740652,2.72278,3672.8,3671.7,2.72353]
[1736204740855,0.7974,3672.7,3671.8,0.204]
[1736204741997,0.7974,3672.7,3671.7,2.72353]
[1736204742198,0.7974,3672.7,3671.8,0.204]
[1736204742365,3.52021,3672.7,3671.8,0.204]
[1736204745912,0.03403647,3672.6,3671.4,0.1794786]
[1736204746122,0.03403647,3672.6,3671.4,0.3834786]
[1736204746322,2.72303,3672.4,3671.4,0.3834786]
[1736204746620,0.03403999,3672.3,3671.4,0.3834786]
[1736204746835,3.87566464,3672.7,3671.4,0.69420746]
[1736204746836,2.75690999,3672.6,3671.4,0.69420746]
[1736204747043,2.75690999,3672.6,3671.4,0.3834786]
[1736204747336,2.72295,3672.5,3671.5,2.72366]
[1736204747486,2.75706,3672.4,3671.4,0.3834786]
[1736204748527,2.72309,3672.3,3671.4,0.3834786]
[1736204748690,2.75724186,3672.2,3671.4,0.3834786]
[1736204748890,0.7586,3672.1,3671.4,0.3834786]
[1736204749445,0.7586,3672.1,3671.4,0.1794786]
[1736204752230,2.75736198,3672.0,3671.4,0.1794786]
[1736204753343,2.72346,3671.8,3671.4,0.1794786]
[1736204753505,2.75735577,3672.0,3671.4,0.1794786]
[1736204753825,3.73631699,3672.5,3671.4,0.1794786]
[1736204753826,3.0,3672.4,3671.4,0.1794786]
[1736204754017,0.03404262,3672.3,3671.4,0.1794786]
[1736204754214,3.0,3672.2,3671.4,0.1794786]
[1736204754429,0.03404264,3672.1,3671.4,0.1794786]
[1736204754635,3.03404264,3672.1,3671.4,0.1794786]
[1736204754837,3.4098049,3672.1,3671.4,0.1794786]
[1736204755507,2.72332,3672.0,3671.4,0.1794786]
[1736204755725,0.03404509,3671.9,3671.4,0.1794786]
[1736204756119,0.768,3671.8,3671.4,0.1794786]
[1736204756321,0.03404608,3671.7,3671.4,0.1794786]
[1736204756647,0.768,3671.8,3671.4,0.1794786]
[1736204756831,1.42051226,3672.1,3671.4,0.1794786]
[1736204757008,0.34819515,3672.0,3671.4,0.1794786]
[1736204757350,0.03404339,3672.3,3671.4,2.9032286]
[1736204757927,2.75713339,3672.3,3671.4,2.9032286]
[1736204758163,2.72316,3672.2,3671.4,0.1794786]
[1736204758326,1.16628789,3672.4,3671.4,2.9031586]
[1736204758551,0.65860131,3672.3,3671.4,0.1794786]
[1736204758845,3.65860131,3672.3,3671.4,0.1794786]
[1736204759327,3.41577167,3672.3,3671.4,0.1794786]
[1736204759669,2.72319,3672.2,3671.4,0.1794786]
[1736204759943,0.82794266,3672.1,3671.4,0.1794786]
[1736204762984,0.34158317,3672.2,3671.4,0.1794786]
[1736204763296,3.03404268,3672.3,3671.4,0.1794786]
[1736204763858,4.13224524,3672.8,3671.5,0.0075]
[1736204764064,0.03403874,3672.7,3671.8,2.7234]
[1736204764449,3.0,3672.4,3671.6,2.7236]
[1736204764786,3.0,3672.6,3671.6,2.7236]
[1736204764994,0.03403986,3672.5,3671.6,2.7236]
[1736204765292,0.03403986,3672.5,3671.5,0.5575]
[1736204765468,2.75676769,3672.8,3671.8,2.72344]
[1736204766560,5.7228,3672.7,3671.7,0.0075]
[1736204766758,0.03403719,3672.6,3671.7,0.0075]
[1736204766958,0.03403719,3672.6,3671.7,2.73098]
[1736204767392,0.03403719,3672.6,3671.7,2.72348]
[1736204767591,2.75690719,3672.6,3671.5,2.72365]
[1736204767782,3.14335859,3672.6,3671.5,0.0075]
[1736204768090,3.14335859,3672.6,3671.6,2.72358]
[1736204768885,0.42048859,3672.6,3671.8,2.72345]
[1736204769355,0.03403714,3672.7,3672.0,2.72329]
[1736204770211,0.03403714,3672.7,3671.9,0.55]
[1736204773229,0.03403714,3672.7,3671.8,2.72345]
[1736204774533,2.75686714,3672.7,3671.6,2.72354]
[1736204774838,0.03403714,3672.7,3671.6,2.72354]
[1736204775059,0.8232,3672.5,3671.5,0.0075]
[1736204775260,2.75705007,3672.4,3671.5,0.0075]
[1736204775632,2.72311,3672.3,3671.4,0.1794786]
[1736204775835,0.03404201,3672.2,3671.4,0.1794786]
[1736204778421,0.03404201,3672.2,3672.1,35.0]
[1736204778653,0.39207721,3672.2,3672.1,35.0]
[1736204778852,0.3580352,3672.2,3672.1,35.0]
[1736204779422,3.0811952,3672.2,3672.1,35.0]
[1736204779771,6.8922952,3672.2,3672.1,35.0]
[1736204781746,10.32895797,3672.2,3672.1,35.0]
[1736204782770,3.43666277,3672.2,3672.1,35.0]
[1736204783142,6.15982277,3672.2,3672.1,35.0]
[1736204783642,3.43666277,3672.2,3672.1,35.0]
[1736204784036,3.43666277,3672.2,3672.1,35.55]
[1736204784769,3.43666277,3672.3,3672.2,0.55]
[1736204785089,3.43666277,3672.3,3671.4,0.1794786]
[1736204785291,3.43666277,3672.3,3672.1,0.0075]
[1736204785457,3.43666277,3672.3,3672.2,35.55]
[1736204786192,3.43666277,3672.3,3672.2,35.0]
[1736204786892,0.03403978,3672.4,3672.3,0.55]
[1736204787060,0.03403856,3672.6,3672.3,0.55]
[1736204787260,0.75749869,3672.6,3671.7,0.5575]
[1736204787459,0.75749869,3672.6,3672.5,35.0]
[1736204788083,5.32703273,3672.6,3672.5,35.0]
[1736204789765,7.63532458,3672.6,3672.5,35.0]
[1736204789964,7.60128602,3672.6,3672.5,35.0]
[1736204791402,6.87782589,3672.6,3672.5,35.0]
[1736204792301,4.15491589,3672.6,3672.5,35.0]
[1736204792715,4.01268529,3672.6,3672.5,35.0]
[1736204793712,3.47845522,3672.7,3672.5,35.0]
[1736204793903,3.4444178,3672.7,3672.0,0.5575]
[1736204794104,3.4444178,3672.7,3672.2,0.55]
[1736204794291,3.4444178,3672.7,3672.6,35.0]
[1736204794489,3.4444178,3672.7,3672.6,35.55]
[1736204794880,1.70439344,3672.8,3672.6,35.55]
[1736204794881,3.4444178,3672.8,3672.6,35.55]
[1736204795078,3.4444178,3672.8,3672.5,2.72292]
[1736204795387,3.4444178,3672.8,3672.6,0.55]
[1736204795593,3.4444178,3672.8,3672.7,35.55]
[1736204796479,2.72248,3673.2,3672.8,0.55]
[1736204796682,0.03403384,3673.2,3672.8,0.55]
[1736204796917,0.03403384,3673.2,3672.4,0.55]
[1736204797221,0.03403384,3673.2,3673.1,35.0]
[1736204797417,0.727124,3673.2,3673.1,35.0]
[1736204798930,3.0338538,3673.2,3673.1,35.0]
[1736204799647,5.7562738,3673.2,3673.1,35.0]
[1736204800361,3.0338538,3673.2,3673.1,35.0]
[1736204801669,3.44165443,3673.2,3673.1,35.55]
[1736204803176,2.05761655,3673.3,3673.2,0.55]
[1736204803629,2.05761655,3673.3,3673.0,0.0075]
[1736204803836,2.05761655,3673.3,3673.2,38.27992]
[1736204804166,2.05761655,3673.3,3673.2,41.20349592]
[1736204804482,1.13492463,3673.6,3673.3,0.55]
[1736204804844,1.13492463,3673.6,3673.3,3.27232]
[1736204805036,1.13492463,3673.6,3673.5,35.55]
[1736204805984,0.92189931,3674.0,3673.6,0.55]
[1736204806282,0.92189931,3674.0,3673.9,0.5575]
[1736204806786,0.92189931,3674.0,3673.9,35.5575]
[1736204807143,0.92189931,3674.0,3673.9,38.2794]
[1736204807744,1.88592463,3674.8,3673.9,38.2794]
[1736204807944,1.88592463,3674.8,3673.7,0.0075]
[1736204808169,1.13492463,3674.8,3674.5,0.0075]
[1736204808483,1.13492463,3674.8,3674.7,38.27881]
[1736204809148,1.13492463,3675.1,3674.8,0.5575]
[1736204809770,1.13492463,3675.1,3675.0,35.5575]
[1736204809970,1.13492463,3675.1,3675.0,35.55]
[1736204810892,0.03401229,3675.3,3675.0,35.55]
[1736204811045,0.39213352,3675.3,3675.0,0.55]
[1736204811242,2.72096,3675.2,3674.4,0.205]
[1736204811484,2.72096,3675.2,3675.1,35.0]
[1736204811782,0.35812123,3675.3,3675.1,35.0]
[1736204812604,3.5472,3675.4,3675.1,35.0]
[1736204812605,0.8264,3675.4,3675.1,35.0]
[1736204813462,0.03401292,3675.3,3675.1,35.0]
[1736204813860,2.75494292,3675.3,3675.1,35.0]
[1736204814374,2.72093,3675.3,3675.1,35.0]
[1736204816994,2.72093,3675.3,3674.4,0.205]
[1736204816995,2.72093,3675.3,3674.5,0.55]
[1736204817195,0.03401495,3675.2,3674.5,0.55]
[1736204817382,2.75494495,3675.3,3675.1,35.0]
[1736204817583,3.33947167,3675.3,3675.1,35.0]
[1736204817785,3.33947167,3675.3,3674.5,0.55]
[1736204818293,3.33947167,3675.3,3675.2,35.0]
[1736204818498,0.61854167,3675.3,3675.2,35.0]
[1736204820503,3.33940167,3675.3,3675.2,35.0]
[1736204821206,0.61854167,3675.3,3675.2,35.0]
[1736204821372,2.72065,3675.6,3675.2,35.0]
[1736204821584,0.03401154,3675.5,3674.7,0.55]
[1736204822069,2.75466155,3675.6,3675.4,35.0]
[1736204822271,2.72065,3675.6,3675.4,35.0]
[1736204822484,0.7517,3675.4,3673.7,3.54163137]
[1736204822798,0.7517,3675.4,3673.6,2.90001872]
[1736204822799,2.60407175,3674.3,3673.6,0.29594697]
[1736204822997,2.72139,3674.6,3673.8,35.0]
[1736204823201,2.75528073,3674.8,3673.9,0.55]
[1736204824212,0.7517,3675.0,3674.2,0.0075]
[1736204824371,2.75518555,3674.9,3674.1,0.55]
[1736204824698,0.7517,3675.0,3674.1,1.73962633]
[1736204824886,0.78571704,3675.0,3674.1,1.73962633]
[1736204825085,3.50679704,3675.0,3674.1,1.73962633]
[1736204825290,2.72121,3674.9,3674.1,1.73962633]
[1736204825598,2.72124,3674.8,3673.9,0.5575]
[1736204825807,2.75525868,3674.8,3673.9,0.5575]
[1736204826026,0.03401868,3674.8,3673.3,2.72229]
[1736204826230,0.03401868,3674.8,3674.3,35.0]
[1736204826231,0.8015,3674.7,3674.3,35.0]
[1736204826521,2.72145,3674.6,3674.3,35.0]
[1736204827061,2.72145,3674.6,3673.7,0.55]
[1736204827464,0.8015,3674.7,3674.5,35.0]
[1736204827696,0.8047,3675.0,3674.5,35.0]
[1736204827904,3.8047,3675.0,3674.0,0.5575]
[1736204828477,3.8047,3675.0,3674.9,35.0]
[1736204828805,0.8047,3675.3,3674.9,35.0]
[1736204829011,1.17959199,3675.3,3674.3,0.5575]
[1736204829306,2.72095,3675.2,3674.3,0.5575]
[1736204829480,0.03401514,3675.1,3674.3,0.5575]
[1736204829909,2.75502514,3675.1,3675.0,35.0]
[1736204830278,6.41106423,3675.1,3675.0,35.0]
[1736204830450,7.21426423,3675.1,3675.0,35.0]
[1736204831501,0.8032,3675.1,3675.0,35.0]